[Event "Romanian Superliga Women 2024"]
[Site "Mamaia"]
[Date "2024.10.01"]
[Round "2.8"]
[White "Dobre, Ana-Margareta-Alexan"]
[Black "Patru, Alexandra-Ioana"]
[Result "0-1"]
[ECO "C24"]
[WhiteElo "1914"]
[BlackElo "1832"]
[Annotator "RC"]
[PlyCount "146"]
[EventDate "2024.09.26"]
[EventType "team-tourn"]
[EventCountry "ROU"]
[SourceTitle "playchess.com"]
[Source "ChessBase"]
[SourceQuality "1"]
[TimeControl "40/5400+30:1800+30"]

1. e4 {[%emt 0:00:02]} e5 {[%emt 0:07:19]} 2. Bc4 {[%emt 0:00:08]} Nf6 {[%emt 0:00:16]} 3. d3 {[%emt 0:00:04]} c6 {[%emt 0:00:20]} 4. Nf3 {[%emt 0:00:20]} d5 {[%emt 0:00:16]} 5. Bb3 {[%emt 0:00:12]} a5 {[%emt 0:00:32]} 6. a3 {[%emt 0:10:06]} Bd6 {[%emt 0:02:22]} 7. O-O {[%emt 0:00:42]} O-O {[%emt 0:01:54]} 8. Re1 {[%emt 0:03:37]} dxe4 {[%emt 0:29:08]} 9. dxe4 {[%emt 0:00:27]} Bg4 {[%emt 0:01:59]} 10. h3 {[%emt 0:26:03]} Bh5 {[%emt 0:00:49]} 11. Nbd2 {[%emt 0:09:41]} Qe7 {[%emt 0:02:34]} 12. Nf1 {[%emt 0:02:18]} Rd8 {[%emt 0:16:03]} 13. Qe2 {[%emt 0:00:18]} Na6 {[%emt 0:00:49]} 14. c3 {[%emt 0:01:27]} Nc5 {[%emt 0:01:50]} 15. Bc2 {[%emt 0:00:07]} Qc7 {[%emt 0:07:52]} 16. Ng3 {[%emt 0:06:29]} Bg6 {[%emt 0:01:04]} 17. Nh4 {[%emt 0:05:42]} Ne6 {[%emt 0:02:00]} 18. Nhf5 {[%emt 0:31:47]} Bc5 {[%emt 0:06:36]} 19. Be3 {[%emt 0:00:00]} Qb6 {[%emt 0:00:30]} 20. b4 {[%emt 0:00:00]} Bxe3 {[%emt 0:16:17]} 21. fxe3 {[%emt 0:00:00]} Rd7 {[%emt 0:00:00]} 22. Kh2 {[%emt 0:00:00]} Rad8 {[%emt 0:00:00]} 23. Rad1 {[%emt 0:00:00]} axb4 24. axb4 h5 {[%emt 0:00:00]} 25. Rxd7 {[%emt 0:00:00]} Rxd7 {[%emt 0:00:00]} 26. Ra1 {[%emt 0:00:00]} Qd8 {[%emt 0:00:00]} 27. Rd1 {[%emt 0:00:00]} Ng5 {[%emt 0:00:00]} 28. Rxd7 {[%emt 0:00:00]} Qxd7 {[%emt 0:00:00]} 29. Qd3 {[%emt 0:01:40]} Qxd3 {[%emt 0:00:06]} 30. Bxd3 {[%emt 0:00:47]} Kf8 {[%emt 0:00:12]} 31. h4 {[%emt 0:01:32]} Ng4+ {[%emt 0:01:50]} 32. Kg1 {[%emt 0:00:04]} Ne6 {[%emt 0:00:35]} 33. Nd6 {[%emt 0:00:43]} b5 {[%emt 0:01:10]} 34. Ngf5 {[%emt 0:00:10]} Bh7 {[%emt 0:00:53]} 35. Be2 {[%emt 0:00:32]} Nf6 {[%emt 0:00:23]} 36. Kf2 {[%emt 0:00:13]} Nxe4+ {[%emt 0:00:52]} 37. Nxe4 {[%emt 0:00:17]} Bxf5 {[%emt 0:00:05]} 38. Ng3 {[%emt 0:00:13]} Bg4 {[%emt 0:00:43]} 39. Nxh5 {[%emt 0:02:09]} Bxe2 {[%emt 0:00:54]} 40. Kxe2 {[%emt 0:00:00]} f5 {[%emt 0:00:00]} 41. Ng3 {[%emt 0:04:13]} g6 {[%emt 0:01:37]} 42. Nf1 {[%emt 0:17:22]} Nc7 {[%emt 0:01:16]} 43. Nd2 {[%emt 0:00:47]} Nd5 {[%emt 0:00:46]} 44. Kd3 {[%emt 0:00:45]} Kf7 {[%emt 0:01:35]} 45. Nb3 {[%emt 0:05:13]} Kf6 {[%emt 0:00:35]} 46. Na5 {[%emt 0:00:23]} Ne7 {[%emt 0:00:25]} 47. c4 {[%emt 0:00:49]} Ke6 {[%emt 0:01:00]} 48. Nb3 {[%emt 0:03:10]} Kd6 {[%emt 0:00:44]} 49. Nc5 {[%emt 0:00:42]} bxc4+ {[%emt 0:00:44]} 50. Kxc4 {[%emt 0:00:06]} Nd5 {[%emt 0:01:36]} 51. e4 {[%emt 0:02:37]} Ne3+ {[%emt 0:00:10]} 52. Kc3 {[%emt 0:01:31]} f4 {[%emt 0:01:05]} 53. Kd2 {[%emt 0:00:36]} Nxg2 {[%emt 0:00:12]} 54. h5 {[%emt 0:00:32]} gxh5 {[%emt 0:00:11]} 55. Ke2 {[%emt 0:00:10]} h4 {[%emt 0:02:07]} 56. Nd3 {[%emt 0:00:39]} Ne3 {[%emt 0:00:47]} 57. Kf2 {[%emt 0:00:22]} h3 {[%emt 0:02:57]} 58. Kg1 {[%emt 0:00:03]} Ng4 {[%emt 0:00:15]} 59. Ne1 {[%emt 0:00:38]} Nf6 {[%emt 0:00:58]} 60. Kh2 {[%emt 0:00:16]} Nxe4 {[%emt 0:00:11]} 61. Kxh3 {[%emt 0:00:00]} Kd5 {[%emt 0:00:31]} 62. Kg4 {[%emt 0:00:32]} Nd2 {[%emt 0:00:33]} 63. Nd3 {[%emt 0:00:41]} Kd4 {[%emt 0:00:25]} 64. Nc5 {[%emt 0:00:27]} f3 {[%emt 0:00:27]} 65. Kg3 {[%emt 0:00:04]} e4 {[%emt 0:00:18]} 66. Ne6+ {[%emt 0:01:00]} Ke3 {[%emt 0:00:22]} 67. Nf4 {[%emt 0:00:17]} f2 {[%emt 0:01:52]} 68. Ng2+ {[%emt 0:00:14]} Ke2 {[%emt 0:00:31]} 69. Nf4+ {[%emt 0:00:34]} Kf1 {[%emt 0:00:31]} 70. b5 {[%emt 0:01:31]} cxb5 {[%emt 0:00:15]} 71. Nd5 {[%emt 0:00:17]} Kg1 {[%emt 0:00:12]} 72. Nf4 {[%emt 0:00:21]} f1=Q {[%emt 0:01:06]} 73. Nh3+ {[%emt 0:00:01]} Qxh3+ {[%emt 0:00:13]} 0-1

[Event "Romanian Superliga Women 2024"]
[Site "Mamaia"]
[Date "2024.10.01"]
[Round "2.9"]
[White "Hoanca, Alexia-Ioana"]
[Black "Sandu, Mihaela"]
[Result "1/2-1/2"]
[ECO "C91"]
[WhiteElo "1962"]
[BlackElo "2248"]
[Annotator "RC"]
[PlyCount "77"]
[EventDate "2024.09.26"]
[EventType "team-tourn"]
[EventCountry "ROU"]
[SourceTitle "playchess.com"]
[Source "ChessBase"]
[SourceQuality "1"]
[TimeControl "40/5400+30:1800+30"]

1. e4 {[%emt 0:00:31]} e5 {[%emt 0:00:24]} 2. Nf3 {[%emt 0:00:09]} Nc6 {[%emt 0:00:06]} 3. Bb5 {[%emt 0:00:32]} a6 {[%emt 0:00:04]} 4. Ba4 {[%emt 0:00:17]} Nf6 {[%emt 0:00:09]} 5. O-O {[%emt 0:00:19]} Be7 {[%emt 0:00:11]} 6. Re1 {[%emt 0:00:30]} b5 {[%emt 0:00:07]} 7. Bb3 {[%emt 0:00:05]} d6 {[%emt 0:00:37]} 8. c3 {[%emt 0:00:08]} O-O {[%emt 0:00:11]} 9. d4 {[%emt 0:00:17]} Bg4 {[%emt 0:00:38]} 10. Be3 {[%emt 0:00:17]} exd4 {[%emt 0:02:53]} 11. cxd4 {[%emt 0:00:31]} Na5 {[%emt 0:00:04]} 12. Bc2 {[%emt 0:00:51]} Nc4 {[%emt 0:02:16]} 13. Bc1 {[%emt 0:01:13]} c5 {[%emt 0:02:13]} 14. b3 {[%emt 0:00:43]} Na5 {[%emt 0:02:03]} 15. Nbd2 {[%emt 0:15:24]} Nc6 {[%emt 0:01:47]} 16. h3 {[%emt 0:03:48]} Bh5 {[%emt 0:00:44]} 17. g4 {[%emt 0:02:53]} Bg6 {[%emt 0:01:39]} 18. Bb2 {[%emt 0:05:01]} Rc8 {[%emt 0:07:42]} 19. a4 {[%emt 0:11:21]} cxd4 {[%emt 0:07:36]} 20. Nxd4 {[%emt 0:08:39]} Nxd4 {[%emt 0:00:40]} 21. Bxd4 {[%emt 0:00:13]} d5 {[%emt 0:00:11]} 22. Ra2 {[%emt 0:10:42]} dxe4 {[%emt 0:12:27]} 23. Bxf6 {[%emt 0:06:27]} Bxf6 {[%emt 0:00:21]} 24. Nxe4 {[%emt 0:05:05]} Bd4 {[%emt 0:01:21]} 25. axb5 {[%emt 0:02:56]} axb5 {[%emt 0:00:36]} 26. Ng3 {[%emt 0:08:59]} Bxf2+ {[%emt 0:24:05]} 27. Kxf2 {[%emt 0:02:15]} Rxc2+ {[%emt 0:00:06]} 28. Rxc2 {[%emt 0:05:04]} Qxd1 {[%emt 0:01:19]} 29. Rxd1 {[%emt 0:00:04]} Bxc2 {[%emt 0:00:05]} 30. Rd5 {[%emt 0:00:12]} Rb8 {[%emt 0:00:19]} 31. b4 {[%emt 0:01:09]} h6 {[%emt 0:00:10]} 32. Ne2 {[%emt 0:04:12]} Bb3 {[%emt 0:01:09]} 33. Rc5 {[%emt 0:00:24]} Bc4 {[%emt 0:00:38]} 34. Nd4 {[%emt 0:00:57]} Kh7 {[%emt 0:01:39]} 35. Nc6 {[%emt 0:02:23]} Ra8 {[%emt 0:02:30]} 36. Na5 {[%emt 0:01:30]} Bd3 {[%emt 0:00:34]} 37. Rd5 {[%emt 0:00:13]} Bc4 {[%emt 0:00:12]} 38. Rc5 {[%emt 0:00:29]} Bd3 {[%emt 0:00:34]} 39. Rd5 {[%emt 0:00:11]} 1/2-1/2

[Event "Romanian Superliga Women 2024"]
[Site "Mamaia"]
[Date "2024.10.01"]
[Round "2.10"]
[White "Radeva, Viktoria"]
[Black "Batagan, Ilinca-Petra"]
[Result "1/2-1/2"]
[ECO "C48"]
[WhiteElo "2297"]
[BlackElo "1935"]
[Annotator "RC"]
[PlyCount "84"]
[EventDate "2024.09.26"]
[EventType "team-tourn"]
[EventCountry "ROU"]
[SourceTitle "playchess.com"]
[Source "ChessBase"]
[SourceQuality "1"]
[TimeControl "40/5400+30:1800+30"]

1. e4 {[%emt 0:00:02]} e5 {[%emt 0:04:44]} 2. Nf3 {[%emt 0:00:12]} Nc6 {[%emt 0:00:42]} 3. Nc3 {[%emt 0:00:14]} Nf6 {[%emt 0:01:00]} 4. Bb5 {[%emt 0:00:07]} Bd6 {[%emt 0:02:15]} 5. d3 {[%emt 0:00:21]} O-O {[%emt 0:02:26]} 6. O-O {[%emt 0:00:57]} Re8 {[%emt 0:01:50]} 7. Bxc6 {[%emt 0:00:41]} dxc6 {[%emt 0:00:32]} 8. Ne2 {[%emt 0:00:52]} h6 {[%emt 0:08:29]} 9. h3 {[%emt 0:00:41]} Bf8 {[%emt 0:12:26]} 10. Nh2 {[%emt 0:03:21]} Nh5 {[%emt 0:07:12]} 11. Ng3 {[%emt 0:14:55]} Nxg3 {[%emt 0:07:20]} 12. fxg3 {[%emt 0:01:43]} Qd6 {[%emt 0:06:46]} 13. g4 {[%emt 0:04:29]} f6 {[%emt 0:13:09]} 14. Be3 {[%emt 0:09:41]} c5 {[%emt 0:05:40]} 15. b3 {[%emt 0:01:19]} b5 {[%emt 0:01:11]} 16. a4 {[%emt 0:07:08]} c4 {[%emt 0:09:25]} 17. h4 {[%emt 0:10:09]} cxd3 {[%emt 0:03:09]} 18. cxd3 {[%emt 0:00:41]} bxa4 {[%emt 0:03:21]} 19. g5 {[%emt 0:03:29]} hxg5 {[%emt 0:02:08]} 20. hxg5 {[%emt 0:00:32]} fxg5 {[%emt 0:00:53]} 21. bxa4 {[%emt 0:10:13]} g4 {[%emt 0:02:47]} 22. Nxg4 {[%emt 0:02:51]} Bxg4 {[%emt 0:00:05]} 23. Qxg4 {[%emt 0:00:03]} Re6 {[%emt 0:03:13]} 24. Rf3 {[%emt 0:01:39]} Rg6 {[%emt 0:01:09]} 25. Qh5 {[%emt 0:00:16]} Be7 {[%emt 0:00:36]} 26. Raf1 {[%emt 0:11:45]} Rf8 {[%emt 0:00:09]} 27. Rf5 {[%emt 0:04:48]} Rxf5 {[%emt 0:00:22]} 28. Rxf5 {[%emt 0:00:30]} Rf6 {[%emt 0:00:47]} 29. Qe8+ {[%emt 0:00:48]} Rf8 {[%emt 0:00:11]} 30. Rxf8+ {[%emt 0:00:37]} Bxf8 {[%emt 0:00:01]} 31. Bxa7 {[%emt 0:01:02]} c5 {[%emt 0:01:23]} 32. Qb5 {[%emt 0:07:25]} Qd4+ {[%emt 0:00:15]} 33. Kf1 {[%emt 0:00:19]} Qe3 {[%emt 0:00:26]} 34. Qc4+ {[%emt 0:00:33]} Kh7 {[%emt 0:00:39]} 35. Qc2 {[%emt 0:01:50]} Be7 {[%emt 0:00:38]} 36. Qe2 {[%emt 0:01:09]} Qf4+ {[%emt 0:00:25]} 37. Qf2 {[%emt 0:01:01]} Qc1+ {[%emt 0:00:06]} 38. Qe1 {[%emt 0:00:15]} Qf4+ {[%emt 0:00:32]} 39. Ke2 {[%emt 0:00:41]} Qg4+ {[%emt 0:00:32]} 40. Kf1 {[%emt 0:00:00]} Qf4+ {[%emt 0:00:00]} 41. Qf2 {[%emt 0:09:14]} Qc1+ {[%emt 0:00:38]} 42. Qe1 {[%emt 0:00:44]} Qf4+ {[%emt 0:00:07]} 1/2-1/2

[Event "Romanian Superliga Women 2024"]
[Site "Mamaia"]
[Date "2024.10.01"]
[Round "2.11"]
[White "Sariteanu, Sabina"]
[Black "Dragomirescu, Angela"]
[Result "0-1"]
[ECO "B07"]
[WhiteElo "1815"]
[BlackElo "2100"]
[Annotator "RC"]
[PlyCount "184"]
[EventDate "2024.09.26"]
[EventType "team-tourn"]
[EventCountry "ROU"]
[SourceTitle "playchess.com"]
[Source "ChessBase"]
[SourceQuality "1"]
[TimeControl "40/5400+30:1800+30"]

1. e4 {[%emt 0:00:49]} d6 {[%emt 0:00:09]} 2. d4 {[%emt 0:00:15]} Nf6 {[%emt 0:00:05]} 3. Nc3 {[%emt 0:00:08]} e5 {[%emt 0:00:12]} 4. dxe5 {[%emt 0:01:07]} dxe5 {[%emt 0:00:05]} 5. Qxd8+ {[%emt 0:00:08]} Kxd8 {[%emt 0:00:04]} 6. Bc4 {[%emt 0:00:07]} Ke8 {[%emt 0:00:35]} 7. Nf3 {[%emt 0:00:10]} Bd6 {[%emt 0:02:10]} 8. O-O {[%emt 0:02:23]} Nbd7 {[%emt 0:17:07]} 9. Ng5 {[%emt 0:13:29]} Rf8 {[%emt 0:00:23]} 10. Be3 {[%emt 0:00:35]} h6 {[%emt 0:18:11]} 11. Nf3 {[%emt 0:02:40]} c6 {[%emt 0:06:48]} 12. Rad1 {[%emt 0:01:53]} Be7 {[%emt 0:07:29]} 13. h3 {[%emt 0:05:34]} Nh5 {[%emt 0:06:07]} 14. Rd2 {[%emt 0:03:29]} g5 {[%emt 0:00:40]} 15. Rfd1 {[%emt 0:00:30]} a6 {[%emt 0:11:16]} 16. a4 {[%emt 0:01:40]} Nf4 {[%emt 0:05:12]} 17. Bxf4 {[%emt 0:00:37]} gxf4 {[%emt 0:00:54]} 18. g3 {[%emt 0:01:20]} fxg3 {[%emt 0:02:05]} 19. fxg3 {[%emt 0:00:07]} Nb6 {[%emt 0:08:20]} 20. Bf1 {[%emt 0:00:53]} Be6 {[%emt 0:02:34]} 21. Nxe5 {[%emt 0:01:14]} Bf6 {[%emt 0:02:20]} 22. a5 {[%emt 0:15:52]} Bxe5 {[%emt 0:00:31]} 23. axb6 {[%emt 0:00:08]} Bxg3 {[%emt 0:02:22]} 24. Na4 {[%emt 0:01:06]} Bf4 {[%emt 0:00:11]} 25. Rd3 {[%emt 0:00:40]} Rg8+ {[%emt 0:01:03]} 26. Kf2 {[%emt 0:01:29]} Bg5 {[%emt 0:01:13]} 27. b3 {[%emt 0:00:57]} Bh4+ {[%emt 0:01:32]} 28. Ke2 {[%emt 0:00:16]} Be7 {[%emt 0:00:12]} 29. c4 {[%emt 0:01:33]} Rg5 {[%emt 0:02:25]} 30. Kd2 {[%emt 0:00:56]} Rd8 {[%emt 0:00:28]} 31. Rxd8+ {[%emt 0:00:41]} Bxd8 {[%emt 0:00:01]} 32. Kc3 {[%emt 0:01:20]} c5 {[%emt 0:01:20]} 33. b4 {[%emt 0:00:40]} cxb4+ {[%emt 0:01:53]} 34. Kxb4 {[%emt 0:00:03]} a5+ {[%emt 0:00:15]} 35. Kb3 {[%emt 0:00:13]} Rb5+ {[%emt 0:01:01]} 36. Kc2 {[%emt 0:00:10]} Rb4 {[%emt 0:00:31]} 37. Nc5 {[%emt 0:00:18]} Bc8 {[%emt 0:00:23]} 38. e5 {[%emt 0:00:58]} Bf5+ {[%emt 0:00:47]} 39. Kc3 {[%emt 0:00:08]} Rxb6 {[%emt 0:00:28]} 40. Bg2 {[%emt 0:00:00]} Be7 {[%emt 0:00:00]} 41. Nxb7 {[%emt 0:00:52]} Bb4+ {[%emt 0:10:54]} 42. Kd4 {[%emt 0:00:29]} Bc8 {[%emt 0:00:42]} 43. Nc5 {[%emt 0:01:42]} f6 {[%emt 0:03:10]} 44. Ne4 {[%emt 0:00:37]} fxe5+ {[%emt 0:01:58]} 45. Kxe5 {[%emt 0:00:16]} Ke7 {[%emt 0:00:36]} 46. c5 {[%emt 0:02:44]} Rg6 {[%emt 0:04:18]} 47. Bf1 {[%emt 0:00:23]} Bb7 {[%emt 0:05:15]} 48. Nd6 {[%emt 0:06:21]} Bc3+ {[%emt 0:02:33]} 49. Kf4 {[%emt 0:00:41]} Bc6 {[%emt 0:01:29]} 50. Nf5+ {[%emt 0:00:55]} Ke8 {[%emt 0:00:11]} 51. Bc4 {[%emt 0:01:20]} Rg2 {[%emt 0:02:17]} 52. Nd6+ {[%emt 0:02:54]} Kf8 {[%emt 0:00:52]} 53. Bd5 {[%emt 0:03:50]} Rd2 {[%emt 0:00:17]} 54. Rxd2 {[%emt 0:00:20]} Bxd2+ {[%emt 0:00:01]} 55. Ke5 {[%emt 0:00:18]} Bf4+ {[%emt 0:02:36]} 56. Kxf4 {[%emt 0:03:28]} Bxd5 {[%emt 0:00:02]} 57. Ke5 {[%emt 0:00:11]} Bc6 {[%emt 0:00:39]} 58. Nc4 {[%emt 0:00:06]} a4 {[%emt 0:00:50]} 59. Kd6 {[%emt 0:00:22]} Bg2 {[%emt 0:00:44]} 60. h4 {[%emt 0:04:16]} Bf1 {[%emt 0:00:59]} 61. Na3 {[%emt 0:00:46]} Kf7 {[%emt 0:00:39]} 62. c6 {[%emt 0:01:01]} Kg6 {[%emt 0:00:22]} 63. c7 {[%emt 0:00:07]} Bh3 {[%emt 0:00:26]} 64. Nc4 {[%emt 0:02:50]} Kh5 {[%emt 0:00:44]} 65. Nb6 {[%emt 0:08:18]} a3 {[%emt 0:00:03]} 66. Nd7 {[%emt 0:00:05]} Bxd7 {[%emt 0:00:49]} 67. Kxd7 {[%emt 0:00:07]} a2 {[%emt 0:00:02]} 68. c8=Q {[%emt 0:00:05]} a1=Q {[%emt 0:00:07]} 69. Qf8 {[%emt 0:05:02]} Qd4+ {[%emt 0:00:34]} 70. Ke6 {[%emt 0:00:56]} Qe4+ {[%emt 0:01:12]} 71. Kd7 {[%emt 0:00:11]} Qb7+ {[%emt 0:00:35]} 72. Ke6 {[%emt 0:00:09]} Qb3+ {[%emt 0:00:36]} 73. Ke5 {[%emt 0:00:22]} Qe3+ {[%emt 0:00:12]} 74. Kd5 {[%emt 0:00:10]} Kxh4 {[%emt 0:00:10]} 75. Qf1 {[%emt 0:02:24]} h5 {[%emt 0:00:57]} 76. Qh1+ {[%emt 0:02:20]} Qh3 {[%emt 0:00:28]} 77. Qe1+ {[%emt 0:00:39]} Qg3 {[%emt 0:00:07]} 78. Qh1+ {[%emt 0:00:18]} Kg5 {[%emt 0:00:22]} 79. Qc1+ {[%emt 0:00:14]} Kg4 {[%emt 0:00:27]} 80. Qc8+ {[%emt 0:01:28]} Kh4 {[%emt 0:00:26]} 81. Qc4+ {[%emt 0:00:19]} Kh3 {[%emt 0:00:10]} 82. Qc8+ {[%emt 0:00:38]} Kh2 {[%emt 0:00:06]} 83. Qc1 {[%emt 0:01:40]} h4 {[%emt 0:00:13]} 84. Ke4 {[%emt 0:00:13]} h3 {[%emt 0:00:21]} 85. Qd1 {[%emt 0:01:09]} Qg2+ {[%emt 0:02:05]} 86. Kf5 {[%emt 0:01:08]} Qf2+ {[%emt 0:00:16]} 87. Kg4 {[%emt 0:00:54]} Qg3+ {[%emt 0:00:07]} 88. Kf5 {[%emt 0:00:15]} Kg2 {[%emt 0:00:07]} 89. Ke4 {[%emt 0:01:29]} h2 {[%emt 0:00:47]} 90. Qe2+ {[%emt 0:00:24]} Kh3 {[%emt 0:00:11]} 91. Qd1 {[%emt 0:00:44]} Qg4+ {[%emt 0:00:06]} 92. Qxg4+ {[%emt 0:00:06]} Kxg4 {[%emt 0:00:01]} 0-1

[Event "Romanian Superliga Women 2024"]
[Site "Mamaia"]
[Date "2024.10.01"]
[Round "2.12"]
[White "Maria, Lia-Alexandra"]
[Black "Popovici, Bianca-Andrada-Maria"]
[Result "1-0"]
[ECO "A13"]
[WhiteElo "2001"]
[BlackElo "1533"]
[Annotator "RC"]
[PlyCount "81"]
[EventDate "2024.09.26"]
[EventType "team-tourn"]
[EventCountry "ROU"]
[SourceTitle "playchess.com"]
[Source "ChessBase"]
[SourceQuality "1"]
[TimeControl "40/5400+30:1800+30"]

1. Nf3 {[%emt 0:00:05]} d5 {[%emt 0:00:35]} 2. c4 {[%emt 0:00:06]} e6 {[%emt 0:00:12]} 3. b3 {[%emt 0:00:49]} Nf6 {[%emt 0:01:26]} 4. Bb2 {[%emt 0:00:07]} g6 {[%emt 0:00:25]} 5. g3 {[%emt 0:07:51]} Bg7 {[%emt 0:06:30]} 6. Bg2 {[%emt 0:00:19]} c5 {[%emt 0:01:11]} 7. cxd5 {[%emt 0:02:24]} exd5 {[%emt 0:01:59]} 8. Qc2 {[%emt 0:01:53]} Nbd7 {[%emt 0:03:01]} 9. d4 {[%emt 0:00:37]} b6 {[%emt 0:03:58]} 10. O-O {[%emt 0:01:33]} O-O {[%emt 0:00:43]} 11. Nc3 {[%emt 0:00:46]} Bb7 {[%emt 0:02:27]} 12. Rfd1 {[%emt 0:13:14]} Rc8 {[%emt 0:05:24]} 13. dxc5 {[%emt 0:00:48]} bxc5 {[%emt 0:00:26]} 14. e3 {[%emt 0:00:04]} Nb6 {[%emt 0:01:16]} 15. Rac1 {[%emt 0:03:57]} a6 {[%emt 0:03:34]} 16. Ne5 {[%emt 0:10:23]} Qd6 {[%emt 0:08:39]} 17. Nc4 {[%emt 0:02:22]} Nxc4 {[%emt 0:05:33]} 18. bxc4 {[%emt 0:00:04]} Qc7 {[%emt 0:06:18]} 19. Nxd5 {[%emt 0:06:33]} Nxd5 {[%emt 0:06:01]} 20. cxd5 {[%emt 0:00:41]} Rfd8 {[%emt 0:01:38]} 21. Bxg7 {[%emt 0:00:19]} Kxg7 {[%emt 0:00:09]} 22. Qb2+ {[%emt 0:02:06]} Kg8 {[%emt 0:03:05]} 23. d6 {[%emt 0:00:08]} Rxd6 {[%emt 0:00:46]} 24. Qxb7 {[%emt 0:00:44]} Qxb7 {[%emt 0:01:34]} 25. Bxb7 {[%emt 0:00:06]} Rcd8 {[%emt 0:00:10]} 26. Rxd6 {[%emt 0:00:06]} Rxd6 {[%emt 0:00:08]} 27. Rxc5 {[%emt 0:00:05]} Rb6 {[%emt 0:02:10]} 28. Bd5 {[%emt 0:03:55]} h6 {[%emt 0:05:05]} 29. Rc7 {[%emt 0:00:30]} Rf6 {[%emt 0:05:00]} 30. e4 {[%emt 0:00:06]} Kf8 {[%emt 0:01:54]} 31. e5 {[%emt 0:01:24]} Rf5 {[%emt 0:02:50]} 32. f4 {[%emt 0:00:04]} g5 {[%emt 0:02:20]} 33. Be4 {[%emt 0:00:04]} Rxf4 {[%emt 0:01:07]} 34. gxf4 {[%emt 0:00:04]} gxf4 {[%emt 0:00:15]} 35. Bd5 {[%emt 0:00:15]} Ke8 {[%emt 0:01:39]} 36. Rxf7 {[%emt 0:00:08]} a5 {[%emt 0:01:23]} 37. e6 {[%emt 0:00:04]} a4 {[%emt 0:00:35]} 38. Bc6+ {[%emt 0:00:04]} Kd8 {[%emt 0:00:07]} 39. Rb7 {[%emt 0:00:03]} a3 {[%emt 0:00:28]} 40. e7+ {[%emt 0:00:00]} Kc8 {[%emt 0:00:00]} 41. e8=R# {[%emt 0:00:08]} 1-0

[Event "Romanian Superliga Women 2024"]
[Site "Mamaia"]
[Date "2024.10.03"]
[Round "4.2"]
[White "Fataliyeva, Ulviyya"]
[Black "Trifoi, Mihaela-Ioana"]
[Result "1-0"]
[ECO "D02"]
[WhiteElo "2378"]
[BlackElo "2016"]
[Annotator "RC"]
[PlyCount "63"]
[EventDate "2024.09.26"]
[EventType "team-tourn"]
[EventCountry "ROU"]
[SourceTitle "playchess.com"]
[Source "ChessBase"]
[SourceQuality "1"]
[TimeControl "40/5400+30:1800+30"]

1. d4 {[%emt 1:31:00]} d5 {[%emt 0:03:57]} 2. Bf4 {[%emt 0:00:00]} Nf6 {[%emt 0:00:18]} 3. e3 {[%emt 0:00:00]} e6 {[%emt 0:00:16]} 4. Nf3 {[%emt 0:00:00]} Bd6 {[%emt 0:00:45]} 5. Ne5 {[%emt 0:00:00]} O-O {[%emt 0:00:36]} 6. Nd2 {[%emt 0:00:00]} c5 {[%emt 0:00:06]} 7. c3 {[%emt 0:00:00]} Qc7 {[%emt 0:00:21]} 8. Bd3 {[%emt 0:00:00]} Nc6 {[%emt 0:01:16]} 9. Ndf3 {[%emt 0:00:00]} Nd7 {[%emt 0:21:18]} 10. Ng5 {[%emt 0:00:00]} Nf6 {[%emt 0:12:20]} 11. Ng4 {[%emt 0:00:00]} Ne4 {[%emt 0:00:37]} 12. Bxd6 {[%emt 0:00:00]} Qxd6 {[%emt 0:00:08]} 13. Bxe4 {[%emt 0:00:00]} dxe4 {[%emt 0:00:31]} 14. Nxe4 {[%emt 0:00:00]} Qe7 {[%emt 0:07:48]} 15. Ne5 {[%emt 0:00:00]} Nxe5 {[%emt 0:00:31]} 16. dxe5 {[%emt 0:00:00]} b6 {[%emt 0:00:23]} 17. Qg4 {[%emt 0:00:00]} Kh8 {[%emt 0:04:39]} 18. O-O-O {[%emt 0:00:00]} Bb7 {[%emt 0:10:09]} 19. Ng3 {[%emt 0:00:00]} f5 {[%emt 0:05:46]} 20. exf6 {[%emt 0:00:00]} gxf6 {[%emt 0:04:44]} 21. e4 {[%emt 0:00:00]} Bc6 {[%emt 0:02:04]} 22. Rd3 {[%emt 0:00:00]} Rad8 {[%emt 0:02:32]} 23. Rhd1 {[%emt 0:00:00]} Rxd3 {[%emt 0:05:02]} 24. Rxd3 {[%emt 0:00:00]} Be8 {[%emt 0:08:15]} 25. Qf4 {[%emt 0:00:00]} Kg7 {[%emt 0:06:40]} 26. h4 {[%emt 0:00:00]} h6 {[%emt 0:01:18]} 27. Nf1 {[%emt 0:00:00]} Kh7 {[%emt 0:01:08]} 28. Nh2 {[%emt 0:00:00]} e5 {[%emt 0:00:29]} 29. Qf5+ {[%emt 0:00:00]} Kh8 {[%emt 0:00:04]} 30. Ng4 {[%emt 0:00:00]} Qg7 {[%emt 0:00:05]} 31. Rd8 {[%emt 0:00:00]} h5 {[%emt 0:01:19]} 32. Nxf6 {[%emt 0:00:00]} 1-0

[Event "Romanian Superliga Women 2024"]
[Site "Mamaia"]
[Date "2024.10.03"]
[Round "4.7"]
[White "Sariteanu, Sabina"]
[Black "Bitca, Emilia"]
[Result "*"]
[ECO "B47"]
[WhiteElo "1815"]
[BlackElo "1865"]
[Annotator "NA COMBH"]
[PlyCount "100"]
[EventDate "2024.09.26"]
[EventType "team-tourn"]
[EventCountry "ROU"]
[SourceTitle "playchess.com"]
[Source "ChessBase"]
[SourceQuality "1"]
[TimeControl "40/5400+30:1800+30"]

1. e4 {[%emt 0:01:37]} c5 {[%emt 0:00:00]} 2. Nc3 {[%emt 0:01:02]} e6 {[%emt 0:00:43]} 3. Nf3 {[%emt 0:05:28]} Nc6 {[%emt 0:01:31]} 4. d4 {[%emt 0:02:34]} cxd4 {[%emt 0:00:15]} 5. Nxd4 {[%emt 0:00:10]} Qc7 {[%emt 0:00:48]} 6. Ndb5 {[%emt 0:00:50]} Qb8 {[%emt 0:00:10]} 7. a4 {[%emt 1:22:19]} a6 {[%emt 0:05:15]} 8. Na3 {[%emt 0:00:22]} Nf6 {[%emt 0:02:17]} 9. Be3 {[%emt 0:02:53]} Bb4 {[%emt 0:11:15]} 10. Nc4 {[%emt 0:16:54]} Nxe4 {[%emt 0:15:15]} 11. Qg4 {[%emt 0:00:08]} Nxc3 {[%emt 0:13:07]} 12. Qxg7 {[%emt 0:00:44]} Nd5+ {[%emt 0:06:52]} 13. c3 {[%emt 0:00:07]} Rf8 {[%emt 0:00:16]} 14. cxb4 {[%emt 0:00:11]} Nxe3 {[%emt 0:00:55]} 15. fxe3 {[%emt 0:02:20]} Nxb4 {[%emt 0:04:54]} 16. Rd1 {[%emt 0:55:19]} Nd5 {[%emt 0:16:01]} 17. e4 {[%emt 0:01:17]} b5 {[%emt 0:01:05]} 18. exd5 {[%emt 0:06:10]} bxc4 {[%emt 0:00:08]} 19. d6 {[%emt 0:48:54]} Bb7 {[%emt 0:01:10]} 20. Bxc4 {[%emt 0:00:58]} Qd8 {[%emt 0:04:59]} 21. O-O {[%emt 0:00:47]} Qb6+ {[%emt 0:03:12]} 22. Kh1 {[%emt 0:00:09]} O-O-O {[%emt 0:00:25]} 23. a5 {[%emt 0:13:12]} Qa7 {[%emt 0:06:58]} 24. Rd2 {[%emt 0:04:31]} Qa8 {[%emt 0:02:21]} 25. Qxh7 {[%emt 0:09:40]} Be4 {[%emt 0:00:25]} 26. Qh3 {[%emt 0:01:51]} Qc6 {[%emt 0:00:52]} 27. Rc1 {[%emt 0:00:28]} Kb8 {[%emt 0:00:15]} 28. Rc3 {[%emt 0:04:03]} Rg8 {[%emt 0:00:59]} 29. Bd5 {[%emt 0:01:02]} Qxc3 {[%emt 0:02:02]} 30. Qxc3 {[%emt 0:00:12]} Bxd5 {[%emt 0:00:07]} 31. Qc7+ {[%emt 0:02:26]} Ka8 {[%emt 0:00:05]} 32. h3 {[%emt 0:00:25]} Bc6 {[%emt 0:00:40]} 33. Qb6 {[%emt 0:10:32]} Bb7 {[%emt 0:00:21]} 34. Kh2 {[%emt 0:00:10]} Rc8 {[%emt 0:00:43]} 35. b4 {[%emt 0:07:20]} Rg5 {[%emt 0:00:23]} 36. Qe3 {[%emt 0:01:00]} Rcg8 {[%emt 0:00:12]} 37. g4 {[%emt 0:00:26]} f5 {[%emt 0:00:27]} 38. Rd4 {[%emt 0:00:58]} fxg4 {[%emt 0:01:00]} 39. Rxg4 {[%emt 0:00:08]} Rxg4 {[%emt 0:00:00]} 40. hxg4 {[%emt 0:00:00]} Rxg4 {[%emt 0:00:00]} 41. Qb6 {[%emt 0:00:54]} Rg8 {[%emt 0:32:37]} 42. b5 {[%emt 0:00:49]} axb5 {[%emt 0:01:08]} 43. Qxb5 {[%emt 0:01:09]} Rg7 {[%emt 0:02:11]} 44. Kh3 {[%emt 0:01:11]} Rf7 {[%emt 0:01:36]} 45. Kg4 {[%emt 0:00:41]} Bf3+ {[%emt 0:01:00]} 46. Kg3 {[%emt 0:00:06]} Bb7 {[%emt 0:00:08]} 47. a6 {[%emt 0:00:40]} Bc6 {[%emt 0:01:20]} 48. Qb6 {[%emt 0:08:00]} Rf8 {[%emt 0:24:42]} 49. Qc5 {[%emt 0:24:53]} Re8 {[%emt 0:00:30]} 50. Qh5 {[%emt 0:00:30] 0.00} Rf8 {[%emt 0:00:30]} *